Workbook

Sheet Forhandling
A1: Nåværende lønn og stilling | D1: AF 1. Krav | J1: Arb.g. 1 Tilbud | O1: AF 2. Krav | T1: Arb.g. 2 Tilbud | Y1: AF 3. Krav | AD1: Arb.g. 3 Tilbud | AI1: Resultat
A2: Navn | B2: Stillingskode | C2: Full stilling | D2: Ny årslønn | E2: Krav i % | F2: Stillingskode | G2: Prioritet | H2: Økning kr | I2: Datolønnsvekst | J2: Årslønn | K2: Tilbud i % | L2: Stillingskode | M2: Økning kr | N2: Datolønnsvekst | O2: Årslønn | P2: Krav i % | Q2: Stillingskode | R2: Økning | S2: Datolønnsvekst | T2: Årslønn | U2: Tilbud i % | V2: Stillingskode | W2: Økning | X2: Datolønnsvekst | Y2: Årslønn | Z2: Krav i % | AA2: Stillingskode | AB2: Økning | AC2: Datolønnsvekst | AD2: Årslønn | AE2: Tilbud i % | AF2: Stillingskode | AG2: Økning | AH2: Datolønnsvekst | AI2: Ny årslønn | AJ2: Stillingskode | AK2: Økning | AL2: Datolønnsvekst
A3: NN | B3: Rådgiver | C3: kr 550,000.00 | E3: 4 | F3: Rådgiver | G3: 1 | H3: =IF(D3=0,$C3*E3/100)+IF(E3=0,D3-$C3) -> kr 22,000.00 | I3: =H3/$C3*100 -> 4.00 | J3: 560000 | L3: Rådgiver | M3: =IF(J3=0,$C3*K3/100)+IF(K3=0,J3-$C3) -> kr 10,000.00 | N3: =M3/$C3*100 -> 1.82 | O3: 600000 | Q3: Rådgiver | R3: =IF(O3=0,$C3*P3/100)+IF(P3=0,O3-$C3) -> kr 50,000.00 | S3: =R3/$C3*100 -> 9.09 | T3: 570000 | V3: Rådgiver | W3: =IF(T3=0,$C3*U3/100)+IF(U3=0,T3-$C3) -> kr 20,000.00 | X3: =W3/$C3*100 -> 3.64 | Y3: 580000 | AA3: Rådgiver | AB3: =IF(Y3=0,$C3*Z3/100)+IF(Z3=0,Y3-$C3) -> kr 30,000.00 | AC3: =AB3/$C3*100 -> 5.45 | AD3: 580000 | AF3: Rådgiver | AG3: =IF(AD3=0,$C3*AE3/100)+IF(AE3=0,AD3-$C3) -> kr 30,000.00 | AH3: =AG3/$C3*100 -> 5.45 | AI3: =AG3+C3 -> kr 580,000.00 | AJ3: =AF3 -> Rådgiver | AK3: =AI3-C3 -> kr 30,000.00 | AL3: =AK3/$C3*100 -> 5.45
C4: 0 | H4: =IF(D4=0,$C4*E4/100)+IF(E4=0,D4-$C4) -> 0 | I4: =H4/$C4*100 ->  | M4: 0 | N4: =M4/$C4*100 ->  | R4: 0 | S4: =R4/$C4*100 ->  | W4: 0 | AB4: 0 | AC4: =AB4/$C4*100 ->  | AG4: =IF(AD4=0,$C4*AE4/100)+IF(AE4=0,AD4-$C4) -> 0 | AH4: =AG4/$C4*100 ->  | AI4: 0 | AJ4: 0 | AK4: 0 | AL4: =AK4/$C4*100 -> 
C5: 0 | H5: =IF(D5=0,$C5*E5/100)+IF(E5=0,D5-$C5) -> 0 | I5: =H5/$C5*100 ->  | M5: 0 | R5: 0 | W5: 0 | AB5: 0 | AG5: 0 | AI5: 0 | AJ5: 0 | AK5: 0
C6: 0 | H6: =IF(D6=0,$C6*E6/100)+IF(E6=0,D6-$C6) -> 0 | I6: =H6/$C6*100 ->  | M6: 0 | R6: 0 | W6: 0 | AB6: 0 | AG6: 0 | AI6: 0 | AJ6: 0 | AK6: 0
C7: 0 | H7: =IF(D7=0,$C7*E7/100)+IF(E7=0,D7-$C7) -> 0 | I7: =H7/$C7*100 ->  | M7: 0 | R7: 0 | W7: 0 | AB7: 0 | AG7: 0 | AI7: 0 | AJ7: 0 | AK7: 0
C8: 0 | H8: 0 | M8: 0 | R8: 0 | W8: 0 | AB8: 0 | AG8: 0 | AI8: 0 | AJ8: 0 | AK8: 0
C9: 0 | H9: 0 | M9: 0 | R9: 0 | W9: 0 | AB9: 0 | AG9: 0 | AI9: 0 | AJ9: 0 | AK9: 0
C10: 0 | H10: =IF(D10=0,$C10*E10/100)+IF(E10=0,D10-$C10) -> 0 | I10: =H10/$C10*100 ->  | M10: =IF(J10=0,$C10*K10/100)+IF(K10=0,J10-$C10) -> 0 | N10: =M10/$C10*100 ->  | R10: =IF(O10=0,$C10*P10/100)+IF(P10=0,O10-$C10) -> 0 | S10: =R10/$C10*100 ->  | W10: =IF(T10=0,$C10*U10/100)+IF(U10=0,T10-$C10) -> 0 | X10: =W10/$C10*100 ->  | AB10: 0 | AC10: =AB10/$C10*100 ->  | AG10: =IF(AD10=0,$C10*AE10/100)+IF(AE10=0,AD10-$C10) -> 0 | AH10: =AG10/$C10*100 ->  | AI10: 0 | AJ10: 0 | AK10: 0 | AL10: =AK10/$C10*100 -> 
C11: 0 | H11: 0 | M11: 0 | R11: 0 | W11: 0 | AB11: 0 | AG11: 0 | AI11: 0 | AJ11: 0 | AK11: 0
C12: 0 | H12: 0 | M12: 0 | R12: 0 | W12: 0 | AB12: 0 | AG12: 0 | AI12: 0 | AJ12: 0 | AK12: 0
C13: 0 | H13: 0 | M13: 0 | R13: 0 | W13: 0 | AB13: 0 | AG13: 0 | AI13: 0 | AJ13: 0 | AK13: 0
C14: 0 | H14: 0 | M14: 0 | R14: 0 | W14: 0 | AB14: 0 | AG14: 0 | AI14: 0 | AJ14: 0 | AK14: 0
C15: 0 | H15: 0 | M15: 0 | R15: 0 | W15: 0 | AB15: 0 | AG15: 0 | AI15: 0 | AJ15: 0 | AK15: 0
C16: 0 | H16: 0 | M16: 0 | R16: 0 | W16: 0 | AB16: 0 | AG16: 0 | AI16: 0 | AJ16: 0 | AK16: 0
C17: 0 | H17: 0 | M17: 0 | R17: 0 | W17: 0 | AB17: 0 | AG17: 0 | AI17: 0 | AJ17: 0 | AK17: 0
C18: 0 | H18: 0 | M18: 0 | R18: 0 | W18: 0 | AB18: 0 | AG18: 0 | AI18: 0 | AJ18: 0 | AK18: 0
C19: 0 | H19: 0 | M19: 0 | R19: 0 | W19: 0 | AB19: 0 | AG19: 0 | AI19: 0 | AJ19: 0 | AK19: 0
C20: 0 | H20: 0 | M20: 0 | R20: 0 | W20: 0 | AB20: 0 | AG20: 0 | AI20: 0 | AJ20: 0 | AK20: 0
C21: 0 | H21: 0 | M21: 0 | R21: 0 | W21: 0 | AB21: 0 | AG21: 0 | AI21: 0 | AJ21: 0 | AK21: 0
C22: 0 | H22: 0 | M22: 0 | R22: 0 | W22: 0 | AB22: 0 | AG22: 0 | AI22: 0 | AJ22: 0 | AK22: 0
C23: 0 | H23: 0 | M23: 0 | R23: 0 | W23: 0 | AB23: 0 | AG23: 0 | AI23: 0 | AJ23: 0 | AK23: 0
C24: 0 | H24: 0 | M24: 0 | R24: 0 | W24: 0 | AB24: 0 | AG24: 0 | AI24: 0 | AJ24: 0 | AK24: 0
C25: 0 | H25: 0 | M25: 0 | R25: 0 | W25: 0 | AB25: 0 | AG25: 0 | AI25: 0 | AJ25: 0 | AK25: 0
C26: 0 | H26: 0 | M26: 0 | R26: 0 | W26: 0 | AB26: 0 | AG26: 0 | AI26: 0 | AJ26: 0 | AK26: 0
C27: 0 | H27: 0 | M27: 0 | R27: 0 | W27: 0 | AB27: 0 | AG27: 0 | AI27: 0 | AJ27: 0 | AK27: 0
C28: 0 | H28: 0 | M28: 0 | R28: 0 | W28: 0 | AB28: 0 | AG28: 0 | AI28: 0 | AJ28: 0 | AK28: 0
C29: 0 | H29: 0 | M29: 0 | R29: 0 | W29: 0 | AB29: 0 | AG29: 0 | AI29: 0 | AJ29: 0 | AK29: 0
C30: 0 | H30: =IF(D30=0,$C30*E30/100)+IF(E30=0,D30-$C30) -> 0 | I30: =H30/$C30*100 ->  | M30: =IF(J30=0,$C30*K30/100)+IF(K30=0,J30-$C30) -> 0 | N30: =M30/$C30*100 ->  | R30: =IF(O30=0,$C30*P30/100)+IF(P30=0,O30-$C30) -> 0 | S30: =R30/$C30*100 ->  | W30: =IF(T30=0,$C30*U30/100)+IF(U30=0,T30-$C30) -> 0 | X30: =W30/$C30*100 ->  | AB30: 0 | AC30: =AB30/$C30*100 ->  | AG30: =IF(AD30=0,$C30*AE30/100)+IF(AE30=0,AD30-$C30) -> 0 | AH30: =AG30/$C30*100 ->  | AI30: 0 | AJ30: 0 | AK30: 0 | AL30: =AK30/$C30*100 -> 
C31: 0 | H31: 0 | M31: 0 | R31: 0 | W31: 0 | AB31: 0 | AG31: 0 | AI31: 0 | AJ31: 0 | AK31: 0
C32: 0 | H32: 0 | M32: 0 | R32: 0 | W32: 0 | AB32: 0 | AG32: 0 | AI32: 0 | AJ32: 0 | AK32: 0
C33: 0 | H33: 0 | M33: 0 | R33: 0 | W33: 0 | AB33: 0 | AG33: 0 | AI33: 0 | AJ33: 0 | AK33: 0
C34: 0 | H34: 0 | M34: 0 | R34: 0 | W34: 0 | AB34: 0 | AG34: 0 | AI34: 0 | AJ34: 0 | AK34: 0
C35: 0 | H35: 0 | M35: 0 | R35: 0 | W35: 0 | AB35: 0 | AG35: 0 | AI35: 0 | AJ35: 0 | AK35: 0
C36: 0 | H36: 0 | M36: 0 | R36: 0 | W36: 0 | AB36: 0 | AG36: 0 | AI36: 0 | AJ36: 0 | AK36: 0
C37: 0 | H37: 0 | M37: 0 | R37: 0 | W37: 0 | AB37: 0 | AG37: 0 | AI37: 0 | AJ37: 0 | AK37: 0
C38: 0 | H38: 0 | M38: 0 | R38: 0 | W38: 0 | AB38: 0 | AG38: 0 | AI38: 0 | AJ38: 0 | AK38: 0
C39: 0 | H39: 0 | M39: 0 | R39: 0 | W39: 0 | AB39: 0 | AG39: 0 | AI39: 0 | AJ39: 0 | AK39: 0
C40: 0 | H40: 0 | M40: 0 | R40: 0 | W40: 0 | AB40: 0 | AG40: 0 | AI40: 0 | AJ40: 0 | AK40: 0
C41: 0 | H41: 0 | M41: 0 | R41: 0 | W41: 0 | AB41: 0 | AG41: 0 | AI41: 0 | AJ41: 0 | AK41: 0
C42: 0 | H42: 0 | M42: 0 | R42: 0 | W42: 0 | AB42: 0 | AG42: 0 | AI42: 0 | AJ42: 0 | AK42: 0
A43: Sum gruppe Akademikerforbundet | C43: =SUM(C3:C42) -> kr 550,000.00 | H43: =SUM(H3:H42) -> kr 22,000.00 | I43: =SUMIF(I3:I42,">0")/COUNT(I3:I42) -> 4.00 | M43: =SUM(M3:M42) -> kr 10,000.00 | N43: =SUMIF(N3:N42,">0")/COUNT(N3:N42) -> 1.82 | R43: =SUM(R3:R42) -> kr 50,000.00 | S43: =SUMIF(S3:S42,">0")/COUNT(S3:S42) -> 9.09 | W43: =SUM(W3:W42) -> kr 20,000.00 | X43: =SUMIF(X3:X42,">0")/COUNT(X3:X42) -> 3.64 | AB43: =SUM(AB3:AB42) -> kr 30,000.00 | AC43: =SUMIF(AC3:AC42,">0")/COUNT(AC3:AC42) -> 5.45 | AG43: =SUM(AG3:AG42) -> kr 30,000.00 | AH43: =SUMIF(AH3:AH42,">0")/COUNT(AH3:AH42) -> 5.45 | AI43: =SUM(AI3:AI42) -> kr 580,000.00 | AJ43: 0 | AK43: =SUM(AK3:AK42) -> kr 30,000.00 | AL43: =SUMIF(AL3:AL42,">0")/COUNT(AL3:AL42) -> 5.45
A45: Virkningsmåned | C45: 5
A46: Måneder med lønnsøking | C46: =13-Virkningsdato -> 8
A51: Gjennomsnitt månedslønn nå | B51: =C3/12 -> kr 45,833.33
A52: Gjennomsnitt månedslønn krav | B52: =D4/12 -> 0

Sheet Ark1

Sheet Lønnshistorikk
A1: Navn | B1: Gjennomsnitt siste tre år | C1: Lønn d.å | D1: Lønnsøkning i % | E1: Lønnsøkning kr | F1: Lønn minus ett år | G1: Lønnsøkning i % | H1: Lønnsøkning kr | I1: Lønn minus to år | J1: Lønnsøkning i % | K1: Lønnsøkning kr | L1: Lønn minus tre år | M1: Lønnsøkning i % | N1: Lønnsøkning kr | O1: Lønn minus fire år
B2: =(D2+J2+M2)/3 ->  | D2: =E2*100/F2 ->  | E2: =C2-F2 -> 0 | G2: =H2*100/I2 ->  | H2: =F2-I2 -> 0 | J2: =K2*100/L2 ->  | K2: =I2-L2 -> 0 | M2: =N2*100/O2 ->  | N2: =L2-O2 -> 0
B3: =(D3+J3+M3)/3 ->  | D3: =E3*100/F3 ->  | E3: =C3-F3 -> 0 | G3: =H3*100/I3 ->  | H3: =F3-I3 -> 0 | J3: =K3*100/L3 ->  | K3: =I3-L3 -> 0 | M3: =N3*100/O3 ->  | N3: =L3-O3 -> 0
E4: 0 | H4: 0 | K4: 0 | N4: 0
E5: 0 | H5: 0 | K5: 0 | N5: 0
E6: 0 | H6: 0 | K6: 0 | N6: 0
E7: 0 | H7: 0 | K7: 0 | N7: 0
E8: 0 | H8: 0 | K8: 0 | N8: 0
E9: 0 | H9: 0 | K9: 0 | N9: 0
E10: 0 | H10: 0 | K10: 0 | N10: 0
E11: 0 | H11: 0 | K11: 0 | N11: 0
E12: 0 | H12: 0 | K12: 0 | N12: 0
E13: 0 | H13: 0 | K13: 0 | N13: 0
E14: 0 | H14: 0 | K14: 0 | N14: 0
E15: 0 | H15: 0 | K15: 0 | N15: 0

Sheet Kravberegning
A1: Informasjon fra TBU | E1: Finn datolønnsvekst (DLV) | F1: %
B2: ÅLV | C2: DLV | E2: Årslønnsvekst | F2: 3.70
A3: "Frontfag" | B3: 3.70 | C3: =(B3*12)/(13-$B$8) -> 5.55 | E3: Datolønnsvekst | F3: =F2*12/Forhandling!C46 -> 5.55
A4: Overheng
A5: Glidning
A6: Minimumresultat | B6: =B3-B4-B5 -> 3.70 | C6: =(B6*12)/(13-$B$8) -> 5.55 | E6: Finn Årslønnsvekst (ÅLV) | F6: %
A7: Informasjon fra forberedende møte | E7: Datolønnsvekst | F7: 5.55
A8: Virkningsmåned | B8: 5 | E8: Årslønnsveskt | F8: =F7*Forhandling!C46/12 -> 3.70
A9: Overheng
A10: Gliding
A11: Disponibel ramme | B11: =B3-B9-B10 -> 3.70 | C11: =(B11*12)/(13-$B$8) -> 5.55
A12: Kravberegning
A13: Minimumresultat | B13: =B11 -> 3.70 | C13: =C11 -> 5.55
A14: Inngangskrav | C14: =(B14*12)/(13-$B$8) -> 0.00
A15: Forhandlingsrom | B15: =B14-B13 -> -3.70 | C15: =C14-C13 -> -5.55
